fUST/lending_fUST_20260321
["ID","MTS","AMOUNT","RATE_DAILY","PERIOD"]
[408667341,1774097447369,-613.877906,8.341e-05,2]
[408667342,1774097447381,-613.877906,8.341e-05,2]
[408667343,1774097447392,-613.877906,8.341e-05,2]
[408667344,1774097447403,-500.0,8.411e-05,2]
[408667345,1774097447415,-500.0,8.411e-05,2]
[408667346,1774097447426,-162.380719,8.411e-05,2]
[408667347,1774097447440,-500.0,8.411e-05,2]
[408667348,1774097447453,-537.6845,8.411e-05,2]
[408667349,1774097447464,-500.0,8.411e-05,2]
[408667350,1774097447477,-500.0,8.411e-05,2]
[408667351,1774097447489,-500.0,8.411e-05,2]
[408667352,1774097447500,-500.0,8.411e-05,2]
[408667353,1774097447512,-500.0,8.411e-05,2]
[408667354,1774097447524,-500.0,8.411e-05,2]
[408667355,1774097447536,-500.0,8.411e-05,2]
[408667356,1774097447547,-500.0,8.411e-05,2]
[408667357,1774097447558,-500.0,8.411e-05,2]
[408667358,1774097447569,-500.0,8.411e-05,2]
[408667359,1774097447583,-500.0,8.411e-05,2]
[408667360,1774097447594,-500.0,8.411e-05,2]
[408667361,1774097447605,-500.0,8.411e-05,2]
[408667362,1774097447617,-500.0,8.411e-05,2]
[408667363,1774097447632,-362.0592822,8.411e-05,2]
[408667364,1774097447644,-2150.738,8.411e-05,2]
[408667365,1774097447656,-537.6845,8.411e-05,2]
[408667366,1774097447667,-1268.059264,8.445e-05,2]
[408667367,1774097447679,-557.5788265,8.466e-05,2]
[408667368,1774097447693,-578.20924308,8.521e-05,2]
[408667369,1774097447707,-640.077978,8.551e-05,2]
[408667370,1774097447720,-640.077978,8.551e-05,2]
[408667371,1774097447732,-640.077978,8.551e-05,2]
[408667372,1774097447745,-415.48517842,8.551e-05,2]
[408667373,1774097447760,-224.59279258,8.551e-05,2]
[408667374,1774097447772,-411.711303,8.551e-05,2]
[408667375,1774097447783,-411.711303,8.551e-05,2]
[408667376,1774097447795,-411.711303,8.551e-05,2]
[408667377,1774097447807,-242.12271,8.551e-05,2]
[408667378,1774097447817,-411.711294,8.551e-05,2]
[408667379,1774097447830,-242.12271,8.551e-05,2]
[408667380,1774097447841,-242.12271,8.551e-05,2]
[408667381,1774097447852,-242.122704,8.551e-05,2]
[408667382,1774097447864,-1279.207105,8.551e-05,2]
[408667383,1774097447875,-1279.207105,8.551e-05,2]
[408667384,1774097447888,-1279.207105,8.551e-05,2]
[408667385,1774097447900,-1279.207099,8.551e-05,2]
[408667386,1774097447911,-613.877906,8.551e-05,2]
[408667387,1774097447922,-613.877906,8.551e-05,2]
[408667388,1774097447933,-613.877906,8.551e-05,2]
[408667389,1774097447944,-613.877906,8.551e-05,2]
[408667390,1774097447956,-151.0,8.551e-05,2]
[408667391,1774097447967,-284.811444,8.551e-05,2]
[408667392,1774097447981,-151.0,8.551e-05,2]
[408667393,1774097447992,-151.0,8.551e-05,2]
[408667394,1774097448004,-151.0,8.551e-05,2]
[408667395,1774097448016,-151.0,8.551e-05,2]
[408667396,1774097448027,-602.123442,8.551e-05,2]
[408667397,1774097448039,-830.135158,8.551e-05,2]
[408667398,1774097448051,-602.123442,8.551e-05,2]
[408667399,1774097448063,-830.135158,8.551e-05,2]
[408667400,1774097448074,-602.123442,8.551e-05,2]
[408667401,1774097448087,-830.135158,8.551e-05,2]
[408667402,1774097448099,-602.123442,8.551e-05,2]
[408667403,1774097448110,-830.135158,8.551e-05,2]
[408667404,1774097448122,-151.0,8.551e-05,2]
[408667405,1774097448133,-1609.819029,8.551e-05,2]
[408667406,1774097448144,-1609.819029,8.551e-05,2]
[408667407,1774097448155,-1609.819029,8.551e-05,2]
[408667408,1774097448167,-1609.819029,8.551e-05,2]
[408667409,1774097448178,-1505.010803,8.551e-05,2]
[408667410,1774097448189,-1505.010803,8.551e-05,2]
[408667411,1774097448200,-1505.010803,8.551e-05,2]
[408667412,1774097448212,-1505.010803,8.551e-05,2]
[408667413,1774097448224,-587.0,8.553e-05,2]
[408667414,1774097448235,-599.60298507,8.576e-05,2]
[408667415,1774097448247,-500.0,8.61e-05,2]
[408667416,1774097448259,-1111.37724439,8.625e-05,2]
[408667417,1774097448272,-1003.72485728,8.625e-05,2]
[408667418,1774097448283,-621.78829552,8.631e-05,2]
[408667419,1774097448295,-500.0,8.681e-05,2]
[408667420,1774097448308,-644.79446246,8.686e-05,2]
[408667421,1774097448320,-668.65185757,8.741e-05,2]
[408667422,1774097448331,-1268.059264,8.772e-05,2]
[408667423,1774097448343,-500.0,8.788e-05,2]
[408667424,1774097448355,-1500.0,8.788e-05,2]
[408667425,1774097448366,-693.3919763,8.796e-05,2]
[408667426,1774097448377,-835.0,8.8e-05,2]
[408667427,1774097448389,-300.0,8.8e-05,2]
[408667428,1774097448400,-719.04747942,8.851e-05,2]
[408667429,1774097448412,-1500.0,8.888e-05,2]
[408667430,1774097448423,-1500.0,8.888e-05,2]
[408667431,1774097448435,-745.65223616,8.906e-05,2]
[408667432,1774097448447,-324.7169407,8.957e-05,2]
[408667433,1774097448458,-557.5788265,8.959e-05,2]
[408667434,1774097448470,-2230.315306,8.959e-05,2]
[408667435,1774097448482,-773.2413689,8.961e-05,2]
[408667436,1774097448493,-506.48,9e-05,2]
[408667437,1774097448504,-4671.06529442,9e-05,2]
[408667438,1774097448515,-2668.51803276,9e-05,2]
[408667439,1774097448526,-557.704628,9e-05,2]
[408667440,1774097448538,-557.704628,9e-05,2]
[408667441,1774097448549,-557.704628,9e-05,2]
[408667442,1774097448561,-557.704628,9e-05,2]
[408667443,1774097448573,-557.704628,9e-05,2]
[408667444,1774097448584,-557.704628,9e-05,2]
[408667445,1774097448596,-557.704628,9e-05,2]
[408667446,1774097448607,-557.704629,9e-05,2]
[408667447,1774097448619,-801.85129955,9.016e-05,2]
[408667448,1774097448634,-22206.0026787,9.029e-05,2]
[408667449,1774097448644,-613.877906,9.029e-05,2]
[408667450,1774097448985,-613.877906,9.029e-05,2]
[408667451,1774097449011,-613.877906,9.029e-05,2]
[408667452,1774097449021,-613.877914,9.029e-05,2]
[408667453,1774097449030,-831.51979763,9.071e-05,2]
[408667454,1774097449040,-151.0,9.099e-05,2]
[408667455,1774097449049,-151.0,9.099e-05,2]
[408667456,1774097449058,-151.0,9.099e-05,2]
[408667457,1774097449068,-151.0,9.099e-05,2]
[408667458,1774097449078,-151.0,9.099e-05,2]
[408667459,1774097449088,-4671.06529442,9.1e-05,2]
[408667460,1774097449099,-2668.51803276,9.1e-05,2]
[408667461,1774097449108,-602.123442,9.1e-05,2]
[408667462,1774097449118,-830.135158,9.1e-05,2]
[408667463,1774097449128,-602.123442,9.1e-05,2]
[408667464,1774097449138,-830.135158,9.1e-05,2]
[408667465,1774097449148,-602.123442,9.1e-05,2]
[408667466,1774097449158,-830.135158,9.1e-05,2]
[408667467,1774097449167,-602.123442,9.1e-05,2]
[408667468,1774097449177,-830.135158,9.1e-05,2]
[408667469,1774097449186,-151.0,9.1e-05,2]
[408667470,1774097449195,-1609.819029,9.1e-05,2]
[408667471,1774097449205,-1609.819029,9.1e-05,2]
[408667472,1774097449214,-1609.819029,9.1e-05,2]
[408667473,1774097449224,-1609.819029,9.1e-05,2]
[408667474,1774097449234,-1505.010803,9.1e-05,2]
[408667475,1774097449243,-1505.010803,9.1e-05,2]
[408667476,1774097449253,-1505.010803,9.1e-05,2]
[408667477,1774097449263,-1505.010803,9.1e-05,2]
[408667478,1774097449272,-1268.059264,9.1e-05,2]
[408667479,1774097449281,-862.28603014,9.126e-05,2]
[408667480,1774097449291,-1000.0,9.134e-05,2]
[408667481,1774097449300,-894.19061326,9.181e-05,2]
[408667482,1774097449310,-4671.06529442,9.2e-05,2]
[408667483,1774097449319,-2668.51803276,9.2e-05,2]
[408667484,1774097449329,-927.27566595,9.236e-05,2]
[408667485,1774097449339,-1397.0,9.281e-05,2]
[408667486,1774097449348,-641.0,9.281e-05,2]
[408667487,1774097449357,-151.049,9.281e-05,2]
[408667488,1774097449367,-961.58486559,9.291e-05,2]
[408667489,1774097449377,-500.0,9.293e-05,2]
[408667490,1774097449386,-160.05612939,9.293e-05,2]
[408667491,1774097449396,-160.0591575,9.293e-05,2]
[408667492,1774097449404,-158.25549687,9.293e-05,2]
[408667493,1774097449414,-158.0554267,9.293e-05,2]
[408667494,1774097449423,-4671.06529442,9.3e-05,2]
[408667495,1774097449432,-2668.51803276,9.3e-05,2]
[408667496,1774097449443,-1008.23898334,9.336e-05,2]
[408667497,1774097449453,-997.16350561,9.346e-05,2]
[408667498,1774097449462,-500.0,9.346e-05,2]
[408667499,1774097449471,-501.06145675,9.346e-05,2]
[408667500,1774097449482,-150.572,9.358e-05,2]
[408667501,1774097449491,-250.0,9.358e-05,2]
[408667502,1774097449501,-266.43,9.358e-05,2]
[408667503,1774097449511,-4954.8289339,9.399e-05,2]
[408667504,1774097449521,-4671.06529442,9.4e-05,2]
[408667505,1774097449531,-2668.51803276,9.4e-05,2]
[408667506,1774097449542,-823.0,9.409e-05,2]
[408667507,1774097449551,-1268.059264,9.428e-05,2]
[408667508,1774097449561,-449.12725096,9.436e-05,2]
[408667509,1774097449571,-2000.72789408,9.436e-05,2]
[408667510,1774097449580,-4671.06529442,9.5e-05,2]
[408667511,1774097449590,-2668.51803276,9.5e-05,2]
[408667512,1774097449599,-578.20924308,9.507e-05,2]
[408667513,1774097449609,-2312.83697232,9.507e-05,2]
[408667514,1774097449618,-4671.06529442,9.6e-05,2]
[408667515,1774097449632,-4671.06529442,9.6e-05,2]
[408667516,1774097449641,-2668.51803276,9.6e-05,2]
[408667517,1774097449651,-2668.51803276,9.6e-05,2]
[408667518,1774097449660,-4671.06529442,9.7e-05,2]
[408667519,1774097449671,-2668.51803276,9.7e-05,2]
[408667520,1774097449681,-151.0,9.7e-05,2]
[408667521,1774097449690,-151.0,9.7e-05,2]
[408667522,1774097449701,-151.0,9.7e-05,2]
[408667523,1774097449711,-160.419665,9.7e-05,2]
[408667524,1774097449721,-154.55973,9.7e-05,2]
[408667525,1774097449731,-162.380719,9.78e-05,2]
[408667526,1774097449741,-196.1258789,9.788e-05,2]
[408667527,1774097449750,-4671.06529442,9.8e-05,2]
[408667528,1774097449761,-2668.51803276,9.8e-05,2]
[408667529,1774097449771,-683.62051132,9.8e-05,2]
[408667530,1774097449780,-602.123442,9.8e-05,2]
[408667531,1774097449790,-830.135158,9.8e-05,2]
[408667532,1774097449800,-602.123442,9.8e-05,2]
[408667533,1774097449810,-830.135158,9.8e-05,2]
[408667534,1774097449820,-602.123442,9.8e-05,2]
[408667535,1774097449830,-830.135158,9.8e-05,2]
[408667536,1774097449839,-602.123442,9.8e-05,2]
[408667537,1774097449849,-830.135158,9.8e-05,2]
[408667538,1774097449859,-161.307833,9.8e-05,2]
[408667539,1774097449869,-1609.819029,9.8e-05,2]
[408667540,1774097449879,-1609.819029,9.8e-05,2]
[408667541,1774097449889,-1609.819029,9.8e-05,2]
[408667542,1774097449898,-1609.819029,9.8e-05,2]
[408667543,1774097449907,-1505.010803,9.8e-05,2]
[408667544,1774097449917,-1505.010803,9.8e-05,2]
[408667545,1774097449926,-1505.010803,9.8e-05,2]
[408667546,1774097449935,-1505.010803,9.8e-05,2]
[408667547,1774097449946,-1000.0,9.841e-05,2]
[408667548,1774097449955,-262.35452343,9.894e-05,2]
[408667549,1774097449966,-40664.90444036,9.9e-05,2]
[408667550,1774097449975,-300.0,9.973e-05,2]
[408667551,1774097449985,-274377.91850814,0.0001,2]
[408667560,1774098061980,-5000.0,7.656e-05,2]
[408667561,1774098062013,-1196.09146777,7.733e-05,2]
[408667562,1774098091220,-5000.0,7.656e-05,2]
[408667565,1774098382501,-1000.0,7.471e-05,2]
[408667566,1774098387031,-1000.0,7.471e-05,2]
[408667567,1774098388359,-1000.0,7.471e-05,2]
[408667568,1774098388798,-1000.0,7.471e-05,2]
[408667569,1774098389084,-1000.0,7.471e-05,2]
[408667570,1774098389426,-1000.0,7.545e-05,2]
[408667571,1774098389878,-200.0,7.545e-05,2]
[408667572,1774098389899,-300.0,7.545e-05,2]
[408667573,1774098389921,-500.0,7.546e-05,2]
[408667574,1774098390376,-1000.0,7.546e-05,2]
[408667575,1774098390852,-1000.0,7.546e-05,2]
[408667576,1774098391189,-1000.0,7.546e-05,2]
[408667577,1774098391547,-1000.0,7.546e-05,2]
[408667578,1774098392010,-500.0,7.546e-05,2]
[408667579,1774098392031,-158.0,7.6e-05,3]
[408667580,1774098392051,-300.0,7.62e-05,2]
[408667581,1774098392071,-42.0,7.62e-05,2]
[408667582,1774098392465,-258.0,7.62e-05,2]
[408667583,1774098392486,-300.0,7.62e-05,2]
[408667584,1774098392508,-442.0,7.622e-05,2]
[408667585,1774098392797,-373.40976,7.622e-05,2]
[408667586,1774098392817,-531.0,7.89e-05,2]
[408667587,1774098392838,-95.59024,8.3e-05,2]
[408667588,1774098393151,-662.40976,8.3e-05,2]
[408667589,1774098393171,-337.59024,8.3e-05,2]
[408667590,1774098394094,-82.40976,8.3e-05,2]
[408667591,1774098394115,-159.936668,8.555e-05,2]
[408667592,1774098394138,-300.0,8.72e-05,2]
[408667593,1774098394160,-300.0,8.72e-05,2]
[408667594,1774098394182,-157.653572,8.72e-05,2]
[408667595,1774098394314,-142.346428,8.72e-05,2]
[408667596,1774098394336,-300.0,8.72e-05,2]
[408667597,1774098394357,-300.0,8.72e-05,2]
[408667598,1774098394379,-257.653572,8.72e-05,2]
[408667599,1774098394406,-42.346428,8.72e-05,2]
[408667600,1774098394431,-300.0,8.72e-05,2]
[408667601,1774098394453,-300.0,8.72e-05,2]
[408667602,1774098394479,-300.0,8.72e-05,2]
[408667603,1774098394503,-57.653572,8.72e-05,2]
[408667604,1774098394548,-242.346428,8.72e-05,2]
[408667605,1774098394570,-300.0,8.72e-05,2]
[408667606,1774098394592,-300.0,8.72e-05,2]
[408667607,1774098394614,-157.653572,8.72e-05,2]
[408667608,1774098395779,-142.346428,8.72e-05,2]
[408667609,1774098395800,-300.0,8.72e-05,2]
[408667610,1774098395824,-300.0,8.72e-05,2]
[408667611,1774098395846,-257.653572,8.721e-05,2]
[408667612,1774098396678,-342.346428,8.721e-05,2]
[408667613,1774098396698,-230.84082452,8.973e-05,2]
[408667614,1774098396719,-426.81274748,8.973e-05,2]
[408667615,1774098396977,-73.18725252,8.973e-05,2]
[408667616,1774098396997,-926.81274748,8.995e-05,2]
[408667617,1774098397453,-1000.0,8.633e-05,2]
[408667618,1774098399167,-1000.0,8.633e-05,2]
[408667619,1774098400182,-1000.0,8.633e-05,2]
[408667620,1774098404477,-900.0,8.633e-05,2]
[408667711,1774098631703,-1074.31782807,8.2e-05,2]
[408667714,1774098631715,-2086.14,8.2e-05,2]
[408667758,1774098637770,-1839.54217193,8.2e-05,2]
[408667759,1774098637781,-5000.0,8.283e-05,2]
[408667760,1774098637791,-536.0,8.283e-05,2]
[408667761,1774098637800,-5000.0,8.367e-05,2]
[408667762,1774098637810,-170.313102,8.451e-05,2]
[408667763,1774098637821,-300.0,8.461e-05,2]
[408667764,1774098637831,-300.0,8.461e-05,2]
[408667765,1774098637842,-300.0,8.461e-05,2]
[408667766,1774098637851,-300.0,8.461e-05,2]
[408667767,1774098637861,-1200.0,8.461e-05,2]
[408667768,1774098637870,-2150.738,8.542e-05,2]
[408667769,1774098637883,-399.90047386,8.542e-05,2]
[408667820,1774098642788,-2699.99999995,8.118e-05,2]
[408667821,1774098642842,-2300.00000005,8.118e-05,2]
[408667822,1774098642852,-137.78402614,8.542e-05,2]
[408667823,1774098642862,-557.5788265,8.597e-05,2]
[408667824,1774098642872,-578.20924308,8.652e-05,2]
[408667825,1774098642882,-599.60298507,8.707e-05,2]
[408667826,1774098642891,-621.78829552,8.762e-05,2]
[408667827,1774098642902,-300.0,8.805e-05,2]
[408667828,1774098642912,-300.0,8.805e-05,2]
[408667829,1774098642922,-300.0,8.805e-05,2]
[408667830,1774098642932,-300.0,8.805e-05,2]
[408667831,1774098642942,-300.0,8.805e-05,2]
[408667832,1774098642951,-300.0,8.805e-05,2]
[408667833,1774098642961,-149.49674496,8.805e-05,2]
[408667843,1774098646012,-150.50325504,8.805e-05,2]
[408667844,1774098646022,-300.0,8.805e-05,2]
[408667845,1774098646032,-300.0,8.805e-05,2]
[408667846,1774098646042,-300.0,8.805e-05,2]
[408667847,1774098646052,-300.0,8.805e-05,2]
[408667848,1774098646061,-300.0,8.805e-05,2]
[408667849,1774098646071,-300.0,8.805e-05,2]
[408667850,1774098646081,-300.0,8.805e-05,2]
[408667851,1774098646091,-300.0,8.805e-05,2]
[408667852,1774098646101,-644.79446246,8.817e-05,2]
[408667853,1774098646111,-668.65185757,8.872e-05,2]
[408667854,1774098646121,-693.3919763,8.927e-05,2]
[408667855,1774098646130,-600.0,8.98e-05,2]
[408667856,1774098646139,-719.04747942,8.982e-05,2]
[408667857,1774098646149,-537.6845,8.995e-05,2]
[408667858,1774098646158,-390.0644289,9.037e-05,2]
[408667859,1774098646168,-1699.42696888,9.09e-05,2]
[408667860,1774098646179,-530.88833712,9.09e-05,2]
[408667861,1774098646189,-2189.0,9.172e-05,2]
[408667862,1774098646198,-420.0,9.307e-05,2]
[408667863,1774098646207,-159.936668,9.456e-05,2]
[408667864,1774098646217,-150.349,9.489e-05,2]
[408667865,1774098646226,-150.354,9.489e-05,2]
[408667866,1774098646236,-557.5788265,9.543e-05,2]
[408667867,1774098646245,-2312.83697232,9.638e-05,2]
[408667868,1774098646255,-305.7720869,9.777e-05,2]
[408667869,1774098646264,-454.8549926,9.779e-05,2]
[408667870,1774098646274,-500.0,9.873e-05,2]
[408667871,1774098646284,-253.50744303,9.873e-05,2]
[408667872,1774098646293,-500.0,9.873e-05,2]
[408667873,1774098646303,-500.0,9.873e-05,2]
[408667874,1774098646313,-500.0,9.873e-05,2]
[408667875,1774098646322,-720.0,9.878e-05,2]
[408667876,1774098646332,-1005.73316984,9.9e-05,2]
[408667877,1774098646341,-2468.6340799,9.9e-05,2]
[408667878,1774098646351,-2486.15559002,9.9e-05,2]
[408667879,1774098646360,-778944.75857646,9.9e-05,2]
[408667918,1774099824624,-2577.61026782,3.614e-05,2]
[408667919,1774099824637,-2422.38973218,3.614e-05,2]
[408667920,1774099824647,-2577.61026782,3.651e-05,2]
[408667940,1774099831800,-1068.10136528,3.651e-05,2]
[408667942,1774099831812,-664.44395527,3.651e-05,2]
[408667948,1774099831859,-689.84441163,3.651e-05,2]
[408667950,1774099831869,-2250.0,3.688e-05,2]
[408667952,1774099831880,-202.0,3.724e-05,2]
[408667954,1774099831893,-300.0,3.724e-05,2]
[408667956,1774099831903,-1200.0,3.876e-05,2]
[408667958,1774099831913,-167.256525,4.078e-05,2]
[408667961,1774099831922,-420.0,4.096e-05,2]
[408667963,1774099831931,-300.0,4.117e-05,2]
[408667967,1774099831940,-300.0,4.117e-05,2]
[408667969,1774099831950,-300.0,4.117e-05,2]
[408667972,1774099831959,-300.0,4.117e-05,2]
[408667974,1774099831968,-300.0,4.117e-05,2]
[408667976,1774099831977,-300.0,4.117e-05,2]
[408667978,1774099831987,-300.0,4.117e-05,2]
[408667980,1774099831996,-300.0,4.117e-05,2]
[408667981,1774099832005,-300.0,4.117e-05,2]
[408667983,1774099832014,-300.0,4.117e-05,2]
[408667985,1774099832023,-300.0,4.117e-05,2]
[408667987,1774099832033,-300.0,4.117e-05,2]
[408667989,1774099832042,-300.0,4.117e-05,2]
[408667991,1774099832051,-300.0,4.117e-05,2]
[408667993,1774099832060,-300.0,4.117e-05,2]
[408667995,1774099832069,-500.0,4.12e-05,2]
[408667997,1774099832078,-600.0,4.198e-05,2]
[408667999,1774099832088,-587.0,4.506e-05,2]
[408668001,1774099832097,-720.0,4.618e-05,2]
[408668003,1774099832106,-167.256525,4.757e-05,2]
[408668005,1774099832115,-394.50458116,4.922e-05,2]
[408668007,1774099832125,-823.0,4.957e-05,2]
[408668009,1774099832134,-864.0,5.08e-05,2]
[408668011,1774099832144,-1592.7625988,5.133e-05,2]
[408668012,1774099832153,-167.256525,5.437e-05,2]
[408668013,1774099832163,-1152.0,5.452e-05,2]
[408668014,1774099832172,-1000.0,5.588e-05,2]
[408668015,1774099832181,-1613.0,5.998e-05,2]
[408668016,1774099832191,-167.256525,6.116e-05,2]
[408668017,1774099832200,-1000.0,6.147e-05,2]
[408668018,1774099832210,-244.0,6.147e-05,2]
[408668019,1774099832219,-633.80210792,6.597e-05,2]
[408668020,1774099832234,-275.752,6.597e-05,2]
[408668212,1774099837916,-5000.0,3.614e-05,2]
[408668213,1774099837926,-1348.44589208,6.597e-05,2]
[408668214,1774099837936,-1000.0,6.761e-05,2]
[408668215,1774099837946,-492.0,6.761e-05,2]
[408668216,1774099837956,-167.256525,6.796e-05,2]
[408668217,1774099837966,-940.16,6.831e-05,2]
[408668218,1774099837975,-879.0,7.257e-05,2]
[408668219,1774099837989,-1000.0,7.438e-05,2]
[408668220,1774099837999,-791.0,7.438e-05,2]
[408668221,1774099838008,-167.256525,7.476e-05,2]
[408668222,1774099838018,-167.256525,8.155e-05,2]
[408668223,1774099838027,-1000.0,8.181e-05,2]
[408668224,1774099838037,-1000.0,8.181e-05,2]
[408668225,1774099838047,-500.0,8.711e-05,2]
[408668226,1774099838056,-362.0592822,8.711e-05,2]
[408668227,1774099838066,-238.65423024,8.711e-05,2]
[408668228,1774099838075,-537.6845,8.711e-05,2]
[408668229,1774099838086,-2150.738,8.711e-05,2]
[408668230,1774099838095,-557.5788265,8.766e-05,2]
[408668231,1774099838105,-578.20924308,8.821e-05,2]
[408668232,1774099838115,-1000.0,8.999e-05,2]
[408668233,1774099838124,-1000.0,8.999e-05,2]
[408668234,1774099838134,-579.0,8.999e-05,2]
[408668235,1774099838143,-500.0,9.114e-05,2]
[408668236,1774099838153,-500.0,9.114e-05,2]
[408668237,1774099838162,-500.0,9.114e-05,2]
[408668238,1774099838172,-2230.315306,9.259e-05,2]
[408668239,1774099838182,-438.0,9.389e-05,2]
[408668240,1774099838192,-193.498,9.389e-05,2]
[408668241,1774099838201,-20019.30024617,9.773e-05,2]
[408668242,1774099838211,-2312.83697232,9.807e-05,2]
[408668243,1774099838221,-196.1323308,9.842e-05,2]
[408668244,1774099838231,-1000.0,9.899e-05,2]
[408668245,1774099838241,-1000.0,9.899e-05,2]
[408668246,1774099838250,-1000.0,9.899e-05,2]
[408668247,1774099838260,-1661.1254437,9.97e-05,2]
[408668301,1774099840401,-5180.09590182,9.97e-05,2]
[408668349,1774099845964,-1040.7,9.97e-05,2]
[408668350,1774099846132,-1732.5,9.97e-05,2]
[408668351,1774099846144,-1047.76194729,9.97e-05,2]
[408668352,1774099846192,-6727.45224123,9.97e-05,2]
[408668353,1774099846204,-18373.10866673,9.97e-05,2]
[408668354,1774099846213,-500.0,9.973e-05,2]
[408668355,1774099846223,-500.0,9.973e-05,2]
[408668356,1774099846233,-51998.60581807,0.0001,2]
[408668357,1774099846244,-479259.65950296,0.0001,2]
[408668358,1774100092351,10000.0,3e-05,10]
[408668432,1774101038569,-5000.0,8e-05,2]
[408668433,1774101038579,-5000.0,8.081e-05,2]
[408668434,1774101038588,-534.0,8.081e-05,2]
[408668435,1774101038598,-1200.0,8.162e-05,2]
[408668436,1774101038608,-300.0,8.407e-05,2]
[408668437,1774101038618,-300.0,8.407e-05,2]
[408668438,1774101038628,-19322.1386637,8.498e-05,2]
[408668440,1774101038641,-1007.1,8.9e-05,2]
[408668441,1774101038650,-1200.0,8.978e-05,2]
[408668443,1774101038659,-500.0,9.048e-05,2]
[408668445,1774101038669,-187.0,9.248e-05,2]
[408668447,1774101038679,-300.0,9.248e-05,2]
[408668450,1774101038688,-2150.738,9.366e-05,2]
[408668452,1774101038698,-537.6845,9.366e-05,2]
[408668454,1774101038708,-166.43341509,9.366e-05,2]
[408668457,1774101038717,-641.0,9.389e-05,2]
[408668459,1774101038727,-1397.0,9.389e-05,2]
[408668461,1774101038737,-2185.0,9.389e-05,2]
[408668463,1774101038746,-557.5788265,9.421e-05,2]
[408668465,1774101038756,-264.655433,9.441e-05,2]
[408668467,1774101038766,-300.0,9.576e-05,2]
[408668469,1774101038775,-300.0,9.576e-05,2]
[408668471,1774101038785,-300.0,9.576e-05,2]
[408668473,1774101038794,-300.0,9.576e-05,2]
[408668474,1774101038804,-300.0,9.576e-05,2]
[408668476,1774101038813,-300.0,9.576e-05,2]
[408668478,1774101038822,-300.0,9.576e-05,2]
[408668479,1774101038831,-300.0,9.576e-05,2]
[408668480,1774101038840,-300.0,9.576e-05,2]
[408668481,1774101038850,-300.0,9.576e-05,2]
[408668482,1774101038860,-300.0,9.576e-05,2]
[408668483,1774101038869,-300.0,9.576e-05,2]
[408668484,1774101038879,-300.0,9.576e-05,2]
[408668485,1774101038890,-300.0,9.576e-05,2]
[408668486,1774101038900,-300.0,9.576e-05,2]
[408668487,1774101038909,-500.0,9.653e-05,2]
[408668488,1774101038919,-500.0,9.653e-05,2]
[408668489,1774101038929,-500.0,9.653e-05,2]
[408668491,1774101038938,-500.0,9.653e-05,2]
[408668492,1774101038948,-500.0,9.653e-05,2]
[408668494,1774101038958,-500.0,9.653e-05,2]
[408668495,1774101038967,-500.0,9.653e-05,2]
[408668497,1774101038977,-213722.92028909,9.673e-05,2]
[408668499,1774101038986,-500.0,9.753e-05,2]
[408668500,1774101038996,-500.48234825,9.753e-05,2]
[408668501,1774101039005,-500.0,9.753e-05,2]
[408668502,1774101039014,-571.80422976,9.753e-05,2]
[408668503,1774101039023,-500.0,9.753e-05,2]
[408668504,1774101039033,-648.06697621,9.753e-05,2]
[408668505,1774101039043,-582.20604411,9.8e-05,2]
[408668506,1774101039052,-264.655433,9.838e-05,2]
[408668507,1774101039062,-454.9041994,9.844e-05,2]
[408668508,1774101039072,-975.1233003,9.867e-05,2]
[408668509,1774101039082,-1007.1,9.9e-05,2]
[408668510,1774101039091,-868.77053569,9.9e-05,2]
[408668511,1774101039101,-2103.0581111,9.9e-05,2]
[408668512,1774101039110,-2338.63676979,9.9e-05,2]
[408668513,1774101039391,-2136.53617126,9.9e-05,2]
[408668514,1774101039401,-151.28062488,9.9e-05,2]
[408668515,1774101039412,-2230.315306,9.914e-05,2]
[408668516,1774101039421,-189.18159756,9.967e-05,2]
[408668517,1774101039431,-500.0,9.973e-05,2]
[408668518,1774101039440,-500.0,9.973e-05,2]
[408668519,1774101039450,-500.0,9.973e-05,2]
[408668520,1774101039459,-539.10971412,9.973e-05,2]
[408668521,1774101039469,-500.0,9.973e-05,2]
[408668522,1774101039479,-512.46378473,9.973e-05,2]
[408668523,1774101039489,-550008.88529605,0.0001,2]
[408668524,1774101039500,-6708.81215265,0.0001,7]
[408668525,1774101039509,-3020.4,0.0001,5]
[408668526,1774101039519,-180.0,0.0001,3]
[408668527,1774101039528,-11876.91610035,0.0001,2]
[408668528,1774101039541,-321.5986262,0.0001,2]